fUST/lending_fUST_20240903
["ID","MTS","AMOUNT","RATE_DAILY","PERIOD"]
[337000513,1725299495024,-1101.48,0.00048767,120]
[337000514,1725299495034,-500.0,0.00048767,120]
[337000515,1725299495044,-500.0,0.00048767,120]
[337000516,1725299495054,-500.0,0.00048767,120]
[337000517,1725299495064,-500.0,0.00048767,120]
[337000518,1725299495074,-500.0,0.00048767,120]
[337000519,1725299495084,-500.0,0.00048767,14]
[337000520,1725299495094,-500.0,0.00048767,120]
[337000521,1725299495104,-581.24,0.00048767,120]
[337000522,1725299495114,-500.0,0.00048767,120]
[337000523,1725299495124,-1006.75,0.00048767,120]
[337000524,1725299495134,-564.09,0.00048767,120]
[337000525,1725299495144,-416.43133245,0.00048767,120]
[337000526,1725299495154,-592.45,0.00048767,120]
[337000527,1725299495164,-824.68,0.00048767,120]
[337000528,1725299495174,-2165.33,0.00048767,120]
[337000529,1725299495184,-500.0,0.00048767,120]
[337000530,1725299495193,-500.0,0.00048767,7]
[337000531,1725299495203,-801.11,0.00048767,120]
[337000532,1725299495214,-6010.24,0.00048767,120]
[337000533,1725299495223,-204.72399752,0.00048767,120]
[337000534,1725299495233,-2597.09,0.00048767,120]
[337000535,1725299495243,-1197.24,0.00048767,120]
[337000536,1725299495254,-500.0,0.00048767,120]
[337000537,1725299495264,-500.0,0.00048767,120]
[337000538,1725299495273,-500.0,0.00048767,120]
[337000539,1725299495283,-500.0,0.00048767,120]
[337000540,1725299495293,-500.0,0.00048767,120]
[337000541,1725299495302,-725.84,0.00048767,120]
[337000542,1725299495312,-509.19,0.00048767,120]
[337000543,1725299495322,-768.36,0.00048767,120]
[337000544,1725299495332,-500.0,0.00048767,120]
[337000545,1725299495344,-500.0,0.00048767,120]
[337000546,1725299495357,-500.0,0.00048767,120]
[337000547,1725299495367,-500.0,0.00048767,120]
[337000548,1725299495377,-500.0,0.00048767,120]
[337000549,1725299495387,-1224.14,0.00048767,120]
[337000550,1725299495396,-282.21654048,0.00048767,120]
[337000551,1725299495407,-601.31,0.00048767,120]
[337000552,1725299495416,-555.15,0.00048767,120]
[337000553,1725299495427,-500.0,0.00048767,120]
[337000554,1725299495437,-500.0,0.00048767,120]
[337000555,1725299495446,-541.45,0.00048767,120]
[337000556,1725299495457,-500.0,0.00048767,120]
[337000557,1725299495468,-823.62,0.00048767,120]
[337000558,1725299495477,-500.0,0.00048767,120]
[337000559,1725299495488,-500.0,0.00048767,120]
[337000560,1725299495498,-500.0,0.00048767,120]
[337000561,1725299495508,-500.0,0.00048767,120]
[337000562,1725299495517,-4513.12,0.00048767,120]
[337000563,1725299495527,-824.48,0.00048767,120]
[337000564,1725299495536,-642.60503739,0.00048767,120]
[337000565,1725299495546,-500.0,0.00048767,120]
[337000566,1725299495556,-500.0,0.00048767,120]
[337000567,1725299495565,-500.0,0.00048767,120]
[337000568,1725299495575,-513.66,0.00048767,120]
[337000569,1725299495585,-500.0,0.00048767,120]
[337000570,1725299495597,-500.0,0.00048767,120]
[337000571,1725299495608,-287.78574244,0.00048767,120]
[337000572,1725299495618,-634.52,0.00048767,120]
[337000573,1725299495627,-500.0,0.00048767,120]
[337000574,1725299495638,-2265.21,0.00048767,120]
[337000575,1725299495648,-611.87,0.00048767,120]
[337000576,1725299495658,-500.0,0.00048767,120]
[337000577,1725299495668,-725.61,0.00048767,120]
[337000578,1725299495678,-500.0,0.00048767,120]
[337000579,1725299495687,-500.0,0.00048767,120]
[337000580,1725299495698,-500.0,0.00048767,60]
[337000581,1725299495710,-500.68,0.00048767,120]
[337000582,1725299495720,-500.0,0.00048767,120]
[337000583,1725299495730,-1603.88,0.00048767,120]
[337000584,1725299495740,-500.0,0.00048767,120]
[337000585,1725299495750,-500.0,0.00048767,120]
[337000586,1725299495761,-2208.45,0.00048767,120]
[337000587,1725299495771,-500.0,0.00048767,120]
[337000588,1725299495782,-1295.36,0.00048767,120]
[337000589,1725299495792,-500.0,0.00048767,120]
[337000590,1725299495801,-852.54,0.00048767,120]
[337000591,1725299495810,-2684.25,0.00048767,120]
[337000592,1725299495820,-500.0,0.00048767,120]
[337000593,1725299495830,-500.0,0.00048767,120]
[337000594,1725299495840,-760.47,0.00048767,120]
[337000595,1725299495862,-505.39300151,0.00048767,120]
[337000596,1725299495872,-500.0,0.00048767,120]
[337000597,1725299495882,-500.0,0.00048767,120]
[337000598,1725299495892,-2593.6,0.00048767,120]
[337000599,1725299495902,-1684.55,0.00048767,120]
[337000600,1725299495911,-1404.31,0.00048767,120]
[337000601,1725299495921,-672.6,0.00048767,120]
[337000602,1725299495930,-1625.36,0.000488,30]
[337000603,1725299495939,-164.605825,0.00049,120]
[337000604,1725299495950,-490.74,0.00049,60]
[337000605,1725299495959,-17350.13576528,0.00049,120]
[337000606,1725299495970,-507.09217137,0.00049088,10]
[337000607,1725299495980,-500.0,0.00049315,120]
[337000608,1725299495990,-500.0,0.00049315,120]
[337000609,1725299496000,-588.33,0.00049315,120]
[337000610,1725299496009,-500.0,0.00049315,120]
[337000611,1725299496019,-1913.8,0.00049315,120]
[337000612,1725299496029,-500.0,0.00049315,120]
[337000613,1725299496039,-432.04852733,0.00049315,120]
[337000614,1725299496050,-500.0,0.00049315,120]
[337000615,1725299496060,-520.83,0.00049315,120]
[337000616,1725299496070,-500.0,0.00049315,120]
[337000617,1725299496080,-500.0,0.00049315,120]
[337000618,1725299496092,-500.0,0.00049315,120]
[337000619,1725299496106,-500.0,0.00049315,120]
[337000620,1725299496116,-500.0,0.00049315,120]
[337000621,1725299496127,-796.73,0.00049315,120]
[337000622,1725299496137,-529.6,0.00049315,120]
[337000623,1725299496147,-500.0,0.00049315,120]
[337000624,1725299496157,-500.0,0.00049315,120]
[337000625,1725299496167,-500.0,0.00049315,120]
[337000626,1725299496177,-500.0,0.00049315,120]
[337000627,1725299496277,-500.0,0.00049315,120]
[337000628,1725299496288,-500.0,0.00049315,120]
[337000629,1725299496298,-520.81082283,0.00049315,120]
[337000630,1725299496308,-500.0,0.00049315,120]
[337000631,1725299496319,-500.0,0.00049315,120]
[337000632,1725299496328,-500.0,0.00049315,120]
[337000633,1725299496338,-500.0,0.00049315,120]
[337000634,1725299496349,-500.0,0.00049315,120]
[337000635,1725299496359,-500.0,0.00049315,120]
[337000636,1725299496368,-606.46,0.00049315,120]
[337000637,1725299496378,-500.0,0.00049315,120]
[337000638,1725299496388,-500.0,0.00049315,120]
[337000639,1725299496398,-500.0,0.00049315,120]
[337000640,1725299496408,-509.34,0.00049315,120]
[337000641,1725299496417,-865.46,0.00049315,120]
[337000642,1725299496427,-500.0,0.00049315,120]
[337000643,1725299496437,-500.0,0.00049315,120]
[337000644,1725299496446,-500.0,0.00049315,120]
[337000645,1725299496457,-500.0,0.00049315,120]
[337000646,1725299496467,-500.0,0.00049315,120]
[337000647,1725299496477,-500.0,0.00049315,120]
[337000648,1725299496487,-500.0,0.00049315,120]
[337000649,1725299496498,-500.0,0.00049315,120]
[337000650,1725299496507,-500.0,0.00049315,120]
[337000651,1725299496517,-474.40475089,0.00049315,120]
[337000652,1725299496526,-1000.49,0.00049315,120]
[337000653,1725299496535,-1160.3,0.00049315,120]
[337000654,1725299496545,-500.0,0.00049315,120]
[337000655,1725299496555,-500.0,0.00049315,120]
[337000656,1725299496564,-619.14,0.00049315,120]
[337000657,1725299496574,-500.0,0.00049315,120]
[337000658,1725299496583,-500.0,0.00049315,120]
[337000659,1725299496593,-1248.91,0.00049315,120]
[337000660,1725299496603,-500.0,0.00049315,120]
[337000661,1725299496613,-762.67,0.00049315,120]
[337000662,1725299496622,-500.0,0.00049315,120]
[337000663,1725299496632,-500.0,0.00049315,120]
[337000664,1725299496641,-500.0,0.00049315,120]
[337000665,1725299496650,-500.0,0.00049315,120]
[337000666,1725299496661,-500.0,0.00049315,120]
[337000667,1725299496671,-505.46,0.00049315,120]
[337000668,1725299496680,-500.0,0.00049315,120]
[337000669,1725299496689,-729.65,0.00049315,120]
[337000670,1725299496699,-500.0,0.00049315,120]
[337000671,1725299496713,-500.0,0.00049315,120]
[337000672,1725299496722,-571.48,0.00049315,120]
[337000673,1725299496733,-500.0,0.00049315,120]
[337000674,1725299496745,-835.83,0.00049315,120]
[337000675,1725299496758,-500.0,0.00049315,120]
[337000676,1725299496768,-500.0,0.00049315,120]
[337000677,1725299496778,-500.0,0.00049315,120]
[337000678,1725299496788,-500.0,0.00049315,7]
[337000679,1725299496798,-500.0,0.00049315,120]
[337000680,1725299496808,-587.13,0.00049315,30]
[337000681,1725299496818,-608.5228033,0.00049315,120]
[337000682,1725299496827,-500.0,0.00049315,120]
[337000683,1725299496840,-500.0,0.00049315,120]
[337000684,1725299496851,-500.0,0.00049315,120]
[337000685,1725299496861,-779.61,0.00049315,120]
[337000686,1725299496873,-500.0,0.00049315,120]
[337000687,1725299496882,-1042.33,0.00049315,120]
[337000688,1725299496892,-500.0,0.00049315,120]
[337000689,1725299496902,-500.0,0.00049315,120]
[337000690,1725299496911,-500.0,0.00049315,120]
[337000691,1725299496921,-500.0,0.00049315,120]
[337000692,1725299496930,-562.87,0.00049315,120]
[337000693,1725299496939,-500.0,0.00049315,120]
[337000694,1725299496948,-620.6,0.00049315,120]
[337000695,1725299496958,-500.0,0.00049315,120]
[337000696,1725299496968,-500.0,0.00049315,120]
[337000697,1725299496978,-1378.84,0.00049315,120]
[337000698,1725299496988,-1685.12,0.00049315,120]
[337000699,1725299496998,-2400.57,0.00049315,120]
[337000700,1725299497008,-807.99,0.00049315,120]
[337000701,1725299497018,-500.0,0.00049315,120]
[337000702,1725299497027,-500.0,0.00049315,120]
[337000703,1725299497041,-500.0,0.00049315,120]
[337000704,1725299497064,-500.0,0.00049315,120]
[337000705,1725299497081,-2683.59,0.00049315,120]
[337000706,1725299497102,-9812.96,0.00049315,120]
[337000707,1725299497125,-500.0,0.00049315,120]
[337000708,1725299497145,-559.89,0.00049315,21]
[337000709,1725299497165,-1849.02,0.00049315,2]
[337000710,1725299497181,-1032.68,0.00049315,120]
[337000711,1725299497200,-1101.48,0.00049315,120]
[337000712,1725299497219,-500.0,0.00049315,120]
[337000713,1725299497241,-500.0,0.00049315,120]
[337000714,1725299497255,-500.0,0.00049315,120]
[337000715,1725299497274,-500.0,0.00049315,120]
[337000716,1725299497291,-500.0,0.00049315,14]
[337000717,1725299497308,-500.0,0.00049315,120]
[337000718,1725299497322,-581.24,0.00049315,120]
[337000719,1725299497339,-500.0,0.00049315,120]
[337000720,1725299497357,-564.09,0.00049315,120]
[337000721,1725299497373,-1006.75,0.00049315,120]
[337000722,1725299497388,-592.45,0.00049315,120]
[337000723,1725299497403,-824.68,0.00049315,120]
[337000724,1725299497419,-2165.33,0.00049315,120]
[337000725,1725299497434,-500.0,0.00049315,120]
[337000726,1725299497448,-500.0,0.00049315,7]
[337000727,1725299497463,-801.11,0.00049315,120]
[337000728,1725299497479,-6010.24,0.00049315,120]
[337000729,1725299497494,-2597.09,0.00049315,120]
[337000730,1725299497510,-1197.24,0.00049315,120]
[337000731,1725299497527,-500.0,0.00049315,120]
[337000732,1725299497545,-500.0,0.00049315,120]
[337000733,1725299497561,-500.0,0.00049315,120]
[337000734,1725299497576,-629.22040485,0.00049315,120]
[337000735,1725299497591,-500.0,0.00049315,120]
[337000736,1725299497606,-725.84,0.00049315,120]
[337000737,1725299497621,-509.19,0.00049315,120]
[337000738,1725299497636,-768.36,0.00049315,120]
[337000739,1725299497653,-500.0,0.00049315,120]
[337000740,1725299497672,-500.0,0.00049315,120]
[337000741,1725299497687,-500.0,0.00049315,120]
[337000742,1725299497704,-500.0,0.00049315,120]
[337000743,1725299497719,-500.0,0.00049315,120]
[337000744,1725299497735,-1224.14,0.00049315,120]
[337000745,1725299497751,-601.31,0.00049315,120]
[337000746,1725299497765,-555.15,0.00049315,120]
[337000747,1725299497782,-500.0,0.00049315,120]
[337000748,1725299497797,-500.0,0.00049315,120]
[337000749,1725299497813,-541.45,0.00049315,120]
[337000750,1725299497829,-500.0,0.00049315,120]
[337000751,1725299497846,-823.62,0.00049315,120]
[337000752,1725299497865,-500.0,0.00049315,120]
[337000753,1725299497880,-500.0,0.00049315,120]
[337000754,1725299497894,-500.0,0.00049315,120]
[337000755,1725299497909,-500.0,0.00049315,120]
[337000756,1725299497923,-4513.12,0.00049315,120]
[337000757,1725299497938,-824.48,0.00049315,120]
[337000758,1725299497953,-500.0,0.00049315,120]
[337000759,1725299497969,-500.0,0.00049315,120]
[337000760,1725299497984,-500.0,0.00049315,120]
[337000761,1725299497999,-513.66,0.00049315,120]
[337000762,1725299498013,-500.0,0.00049315,120]
[337000763,1725299498028,-500.0,0.00049315,120]
[337000764,1725299498045,-634.52,0.00049315,120]
[337000765,1725299498060,-500.0,0.00049315,120]
[337000766,1725299498075,-2265.21,0.00049315,120]
[337000767,1725299498091,-611.87,0.00049315,120]
[337000768,1725299498105,-500.0,0.00049315,120]
[337000769,1725299498119,-500.0,0.00049315,120]
[337000770,1725299498134,-500.0,0.00049315,120]
[337000771,1725299498149,-507.84903946,0.00049315,60]
[337000772,1725299498164,-725.61,0.00049315,120]
[337000773,1725299498179,-500.68,0.00049315,120]
[337000774,1725299498195,-500.0,0.00049315,120]
[337000775,1725299498211,-1603.88,0.00049315,120]
[337000776,1725299498227,-500.0,0.00049315,120]
[337000777,1725299498374,-2208.45,0.00049315,120]
[337000778,1725299498384,-500.0,0.00049315,120]
[337000779,1725299498395,-500.0,0.00049315,120]
[337000780,1725299498405,-1295.36,0.00049315,120]
[337000781,1725299498416,-500.0,0.00049315,120]
[337000782,1725299498427,-852.54,0.00049315,120]
[337000783,1725299498437,-2684.25,0.00049315,120]
[337000784,1725299498447,-500.0,0.00049315,120]
[337000785,1725299498456,-500.0,0.00049315,120]
[337000786,1725299498466,-760.47,0.00049315,120]
[337000787,1725299498478,-500.0,0.00049315,120]
[337000788,1725299498488,-2593.6,0.00049315,120]
[337000789,1725299498498,-1684.55,0.00049315,120]
[337000790,1725299498508,-1404.31,0.00049315,120]
[337000791,1725299498518,-672.6,0.00049315,120]
[337000792,1725299498530,-266.277019,0.00049719,2]
[337000793,1725299498543,-150.0,0.00049784,2]
[337000794,1725299498552,-523.0,0.00049784,2]
[337000795,1725299498561,-500.0,0.00049863,120]
[337000796,1725299498572,-500.0,0.00049863,120]
[337000797,1725299498581,-588.33,0.00049863,120]
[337000798,1725299498591,-500.0,0.00049863,120]
[337000799,1725299498600,-1913.8,0.00049863,120]
[337000800,1725299498609,-500.0,0.00049863,120]
[337000801,1725299498620,-500.0,0.00049863,120]
[337000802,1725299498631,-520.83,0.00049863,120]
[337000803,1725299498641,-500.0,0.00049863,120]
[337000804,1725299498650,-500.0,0.00049863,120]
[337000805,1725299498660,-500.0,0.00049863,120]
[337000806,1725299498669,-500.0,0.00049863,120]
[337000807,1725299498679,-500.0,0.00049863,120]
[337000808,1725299498689,-796.73,0.00049863,120]
[337000809,1725299498698,-529.6,0.00049863,120]
[337000810,1725299498709,-500.0,0.00049863,120]
[337000811,1725299498718,-500.0,0.00049863,120]
[337000812,1725299498728,-500.0,0.00049863,120]
[337000813,1725299498738,-500.0,0.00049863,120]
[337000814,1725299498748,-500.0,0.00049863,120]
[337000815,1725299498758,-500.0,0.00049863,120]
[337000816,1725299498767,-500.0,0.00049863,120]
[337000817,1725299498777,-500.0,0.00049863,120]
[337000818,1725299498788,-572.65543599,0.00049863,120]
[337000819,1725299498798,-500.0,0.00049863,120]
[337000820,1725299498808,-500.0,0.00049863,120]
[337000821,1725299498819,-500.0,0.00049863,120]
[337000822,1725299498829,-606.46,0.00049863,120]
[337000823,1725299498839,-500.0,0.00049863,120]
[337000824,1725299498854,-500.0,0.00049863,120]
[337000825,1725299498864,-500.0,0.00049863,120]
[337000826,1725299498873,-509.34,0.00049863,120]
[337000827,1725299498883,-865.46,0.00049863,120]
[337000828,1725299498893,-500.0,0.00049863,120]
[337000829,1725299498903,-1000.49,0.00049863,120]
[337000830,1725299498912,-1160.3,0.00049863,120]
[337000831,1725299498922,-500.0,0.00049863,120]
[337000832,1725299498931,-408.04065984,0.00049863,120]
[337000833,1725299498942,-619.14,0.00049863,120]
[337000834,1725299498951,-500.0,0.00049863,120]
[337000835,1725299498963,-500.0,0.00049863,120]
[337000836,1725299498972,-1248.91,0.00049863,120]
[337000837,1725299498982,-500.0,0.00049863,120]
[337000838,1725299498991,-762.67,0.00049863,120]
[337000839,1725299499001,-500.0,0.00049863,120]
[337000840,1725299499011,-500.0,0.00049863,120]
[337000841,1725299499020,-500.0,0.00049863,120]
[337000842,1725299499029,-500.0,0.00049863,120]
[337000843,1725299499039,-500.0,0.00049863,120]
[337000844,1725299499049,-505.46,0.00049863,120]
[337000845,1725299499059,-500.0,0.00049863,120]
[337000846,1725299499069,-729.65,0.00049863,120]
[337000847,1725299499079,-500.0,0.00049863,120]
[337000848,1725299499089,-500.0,0.00049863,120]
[337000849,1725299499099,-571.48,0.00049863,120]
[337000850,1725299499109,-500.0,0.00049863,120]
[337000851,1725299499120,-835.83,0.00049863,120]
[337000852,1725299499130,-500.0,0.00049863,120]
[337000853,1725299499140,-500.0,0.00049863,120]
[337000854,1725299499150,-500.0,0.00049863,120]
[337000855,1725299499169,-500.0,0.00049863,7]
[337000856,1725299499182,-500.0,0.00049863,120]
[337000857,1725299499192,-587.13,0.00049863,30]
[337000858,1725299499202,-500.0,0.00049863,120]
[337000859,1725299499213,-507.56231325,0.00049863,120]
[337000860,1725299499224,-500.0,0.00049863,120]
[337000861,1725299499235,-779.61,0.00049863,120]
[337000862,1725299499245,-500.0,0.00049863,120]
[337000863,1725299499256,-1042.33,0.00049863,120]
[337000864,1725299499266,-500.0,0.00049863,120]
[337000865,1725299499276,-500.0,0.00049863,120]
[337000866,1725299499287,-500.0,0.00049863,120]
[337000867,1725299499297,-500.0,0.00049863,120]
[337000868,1725299499307,-562.87,0.00049863,120]
[337000869,1725299499317,-500.0,0.00049863,120]
[337000870,1725299499327,-620.6,0.00049863,120]
[337000871,1725299499338,-500.0,0.00049863,120]
[337000872,1725299499350,-500.0,0.00049863,120]
[337000873,1725299499362,-1378.84,0.00049863,120]
[337000874,1725299499372,-1685.12,0.00049863,120]
[337000875,1725299499382,-2400.57,0.00049863,120]
[337000876,1725299499392,-807.99,0.00049863,120]
[337000877,1725299499402,-500.0,0.00049863,120]
[337000878,1725299499412,-500.0,0.00049863,120]
[337000879,1725299499422,-500.0,0.00049863,120]
[337000880,1725299499432,-500.0,0.00049863,120]
[337000881,1725299499441,-2683.59,0.00049863,120]
[337000882,1725299499451,-9812.96,0.00049863,120]
[337000883,1725299499462,-500.0,0.00049863,120]
[337000884,1725299499472,-559.89,0.00049863,21]
[337000885,1725299499483,-1849.02,0.00049863,2]
[337000886,1725299499494,-1032.68,0.00049863,120]
[337000887,1725299499504,-1101.48,0.00049863,120]
[337000888,1725299499514,-500.0,0.00049863,120]
[337000889,1725299499524,-500.0,0.00049863,120]
[337000890,1725299499535,-500.0,0.00049863,120]
[337000891,1725299499545,-500.0,0.00049863,120]
[337000892,1725299499555,-500.0,0.00049863,14]
[337000893,1725299499564,-500.0,0.00049863,120]
[337000894,1725299499575,-581.24,0.00049863,120]
[337000895,1725299499584,-500.0,0.00049863,120]
[337000896,1725299499595,-1006.75,0.00049863,120]
[337000897,1725299499605,-564.09,0.00049863,120]
[337000898,1725299499615,-592.45,0.00049863,120]
[337000899,1725299499626,-824.68,0.00049863,120]
[337000900,1725299499636,-2165.33,0.00049863,120]
[337000901,1725299499646,-500.0,0.00049863,120]
[337000902,1725299499656,-500.0,0.00049863,7]
[337000903,1725299499666,-801.11,0.00049863,120]
[337000904,1725299499676,-6010.24,0.00049863,120]
[337000905,1725299499686,-2597.09,0.00049863,120]
[337000906,1725299499696,-1197.24,0.00049863,120]
[337000907,1725299499708,-500.0,0.00049863,120]
[337000908,1725299499719,-500.0,0.00049863,120]
[337000909,1725299499729,-500.0,0.00049863,120]
[337000910,1725299499738,-500.0,0.00049863,120]
[337000911,1725299499749,-725.84,0.00049863,120]
[337000912,1725299499759,-509.19,0.00049863,120]
[337000913,1725299499769,-768.36,0.00049863,120]
[337000914,1725299499779,-500.0,0.00049863,120]
[337000915,1725299499790,-500.0,0.00049863,120]
[337000916,1725299499800,-500.0,0.00049863,120]
[337000917,1725299499811,-500.0,0.00049863,120]
[337000918,1725299499823,-500.0,0.00049863,120]
[337000919,1725299499833,-1224.14,0.00049863,120]
[337000920,1725299499845,-601.31,0.00049863,120]
[337000921,1725299499856,-555.15,0.00049863,120]
[337000922,1725299499867,-480.65963602,0.00049863,120]
[337000923,1725299499880,-500.0,0.00049863,120]
[337000924,1725299499893,-541.45,0.00049863,120]
[337000925,1725299499905,-500.0,0.00049863,120]
[337000926,1725299499915,-823.62,0.00049863,120]
[337000927,1725299499927,-500.0,0.00049863,120]
[337000928,1725299499940,-500.0,0.00049863,120]
[337000929,1725299499951,-500.0,0.00049863,120]
[337000930,1725299499962,-500.0,0.00049863,120]
[337000931,1725299499972,-4513.12,0.00049863,120]
[337000932,1725299499983,-824.48,0.00049863,120]
[337000933,1725299499994,-500.0,0.00049863,120]
[337000934,1725299500005,-500.0,0.00049863,120]
[337000935,1725299500015,-500.0,0.00049863,120]
[337000936,1725299500026,-513.66,0.00049863,120]
[337000937,1725299500036,-500.0,0.00049863,120]
[337000938,1725299500164,-500.0,0.00049863,120]
[337000939,1725299500175,-634.52,0.00049863,120]
[337000940,1725299500185,-500.0,0.00049863,120]
[337000941,1725299500199,-2265.21,0.00049863,120]
[337000942,1725299500209,-611.87,0.00049863,120]
[337000943,1725299500219,-500.0,0.00049863,120]
[337000944,1725299500229,-500.0,0.00049863,120]
[337000945,1725299500238,-500.0,0.00049863,120]
[337000946,1725299500249,-725.61,0.00049863,120]
[337000947,1725299500259,-500.68,0.00049863,120]
[337000948,1725299500270,-634.08,0.00049863,120]
[337000949,1725299500280,-1603.88,0.00049863,120]
[337000950,1725299500292,-500.0,0.00049863,120]
[337000951,1725299500302,-2208.45,0.00049863,120]
[337000952,1725299500312,-500.0,0.00049863,120]
[337000953,1725299500323,-500.0,0.00049863,120]
[337000954,1725299500336,-1295.36,0.00049863,120]
[337000955,1725299500347,-500.0,0.00049863,120]
[337000956,1725299500358,-852.54,0.00049863,120]
[337000957,1725299500369,-2684.25,0.00049863,120]
[337000958,1725299500379,-500.0,0.00049863,120]
[337000959,1725299500392,-500.0,0.00049863,120]
[337000960,1725299500405,-760.47,0.00049863,120]
[337000961,1725299500416,-500.0,0.00049863,120]
[337000962,1725299500429,-2593.6,0.00049863,120]
[337000963,1725299500440,-1684.55,0.00049863,120]
[337000964,1725299500451,-1404.31,0.00049863,120]
[337000965,1725299500462,-28016.73561357,0.0004997,19]
[337000966,1725299500472,-433.90365888,0.00049999,31]
[337000967,1725299500483,-500.0,0.00049999,120]
[337000968,1725299500493,-500.0,0.00049999,120]
[337000969,1725299500503,-500.0,0.00049999,120]
[337000970,1725299500512,-500.0,0.00049999,120]
[337000971,1725299500522,-500.0,0.00049999,120]
[337000972,1725299500533,-500.0,0.00049999,120]
[337000973,1725299500543,-500.0,0.00049999,120]
[337000974,1725299500553,-500.0,0.00049999,120]
[337000975,1725299500563,-260.85609479,0.00049999,120]
[337000976,1725299500573,-424.85426694,0.00049999,120]
[337000977,1725299500583,-500.0,0.00049999,120]
[337000978,1725299500593,-500.0,0.00049999,120]
[337000979,1725299500603,-500.0,0.00049999,120]
[337000980,1725299500613,-500.0,0.00049999,120]
[337000981,1725299500625,-500.0,0.00049999,120]
[337000982,1725299500636,-500.0,0.00049999,120]
[337000983,1725299500646,-500.0,0.00049999,120]
[337000984,1725299500656,-500.0,0.00049999,120]
[337000985,1725299500666,-500.0,0.00049999,120]
[337000986,1725299500675,-500.0,0.00049999,120]
[337000987,1725299500685,-500.0,0.00049999,120]
[337000988,1725299500696,-500.0,0.00049999,120]
[337000989,1725299500711,-500.0,0.00049999,120]
[337000990,1725299500722,-500.0,0.00049999,120]
[337000991,1725299500733,-500.0,0.00049999,120]
[337000992,1725299500743,-500.0,0.00049999,120]
[337000993,1725299500756,-500.0,0.00049999,120]
[337000994,1725299500767,-500.0,0.00049999,120]
[337000995,1725299500777,-572.16888148,0.00049999,120]
[337000996,1725299500788,-500.0,0.00049999,120]
[337000997,1725299500797,-500.0,0.00049999,120]
[337000998,1725299500807,-500.0,0.00049999,120]
[337000999,1725299500818,-500.0,0.00049999,120]
[337001000,1725299500833,-429.43834488,0.00049999,120]
[337001001,1725299500845,-500.0,0.00049999,120]
[337001002,1725299500855,-500.0,0.00049999,120]
[337001003,1725299500866,-24814.45159002,0.0005,120]
[337001004,1725299500876,-2000.0,0.0005,120]
[337001005,1725299500887,-1500.0,0.0005,120]
[337001006,1725299500898,-150.0,0.0005,120]
[337001007,1725299500908,-500.0,0.0005,2]
[337001008,1725299500921,-2000.0,0.0005,120]
[337001009,1725299500933,-1000.0,0.0005,120]
[337001010,1725299500945,-7000.0,0.0005,120]
[337001011,1725299500957,-500.0,0.00050004,120]
[337001012,1725299500967,-500.0,0.0005041,120]